Cogmind - Beta 10.1 @@@ ROGUE MODE // 2020.09.29 @ 23:37:06 Player: Calanor Result: Destroyed by as-19258 with Assembled Blade Performance ------------- Evolutions (0) 0 Regions Visited (2) 400 Robots Destroyed (23) 115 Value Destroyed (653) 653 Prototype IDs (0) 0 Alien Tech Used (0) 0 Bonus (0) 0 TOTAL SCORE: 1168 Bonus ------- None Cogmind --------- Core Integrity 0/250 Matter 270/300 Energy 60/250 System Corruption 3% Temperature Cool (93) Movement Core (700) Ox13 Location -10/Mines Parts ------- > --- POWER (1) -------- Ion Engine > --- PROPULSION (2) --- (None) > --- UTILITY (2) ------ High-capacity Storage Unit Light Armor Plating > --- WEAPON (2) ------- Hammer > --- INVENTORY (12) --- Ion Engine Improved Treads Improved Treads Large Storage Unit Heavy Assault Rifle Heavy Assault Rifle Datajack Peak State ------------ > --- POWER ------------ Ion Engine > --- PROPULSION ------- Improved Treads Improved Treads > --- UTILITY ---------- Large Storage Unit Weapon Shielding > --- WEAPON ----------- Particle Gun Particle Gun > --- INVENTORY -------- Light Ion Engine Light Treads Improved Treads Improved Treads Heat Sink Particle Gun Light Assault Rifle Light Assault Rifle Light Assault Rifle Hammer [Rating: 12] Favorites ----------- Power Ion Engine Engine Ion Engine Propulsion Improved Treads Treads Improved Treads Leg Aluminum Leg Utility Heat Sink Device Heat Sink Storage Large Storage Unit Protection Weapon Shielding Weapon Particle Gun Energy Gun Particle Gun Ballistic Gun Heavy Assault Rifle Impact Weapon Hammer Build | -11 -10 -10 ------- Run | Scr Mat Min Slots Evolved . | . . . Power . | . . . Propulsion . | . . . Utility . | . . . Weapon . | . . . Parts Attached 44 | 6 33 5 Power 6 | 1 4 1 Engine 6 | 1 4 1 Core . | . . . Reactor . | . . . Propulsion 8 | 2 6 . Treads 2 | . 2 . Leg 6 | 2 4 . Wheel . | . . . Hover . | . . . Flight . | . . . Utility 11 | 1 9 1 Device 4 | . 4 . Storage 5 | 1 4 . Processor . | . . . Hackware . | . . . Protection 2 | . 1 1 Artifact . | . . . Weapon 19 | 2 14 3 Energy Gun 8 | . 6 2 Energy Cannon . | . . . Ballistic Gun 8 | 2 6 . Ballistic Cannon . | . . . Launcher . | . . . Special Weapon . | . . . Impact Weapon 3 | . 2 1 Slashing Weapon . | . . . Piercing Weapon . | . . . Special Melee Weapon . | . . . Unidentified Prototypes . | . . . Parts Lost 9 | . 4 5 Power 1 | . . 1 Propulsion 2 | . . 2 Utility 2 | . 1 1 Weapon 4 | . 3 1 Highest Loss Streak 5 | . 2 5 Average Slot Usage (%) 98 | . 97 99 Engine 13 | . 13 14 Treads 23 | . 23 27 Leg 4 | . 4 . Device 10 | . 9 14 Storage 14 | . 14 14 Protection 1 | . 2 . Energy Gun 13 | . 15 2 Ballistic Gun 13 | . 10 25 Impact Weapon 1 | . 1 . Naked Turns . | . . . Heaviest Build 44 | 11 44 44 Greatest Support 46 | 20 46 46 Greatest Overweight (x) 1 | 1 1 . Average Overweight (x) . | . . . Largest Inventory Capacity 16 | 6 16 12 Average Capacity 10 | 4 9 12 Most Carried 12 | 3 12 10 Average Carried 8 | 1 8 9 Final Capacity 12 | 6 12 12 Final Carried 10 | 3 10 7 Class Distribution -------------------- 100% | Mutant Dominant Class ---------------- Mutant | -10/Materials Mutant | -10/Mines Resources | -11 -10 -10 ----------- Run | Scr Mat Min Matter Collected 744 | 246 416 82 Remotely . | . . . Salvage Created 798 | . 754 44 Parts 42 | . 42 . Haulers Intercepted 1 | . 1 . Recyclers Shooed 1 | . 1 . Parts Field Recycled . | . . . Retrieved Matter . | . . . Parts Self-Destructed . | . . . Prevented . | . . . Kills | -11 -10 -10 ------- Run | Scr Mat Min Combat Hostiles Destroyed 19 | . 16 3 Guns 18 | . 15 3 AOE 1 | . 1 . Classes Destroyed 4 | . 3 1 Hauler 1 | . 1 . Watcher 3 | . 3 . Grunt 16 | . 16 . Assembled 3 | . . 3 Best Kill Streak 3 | . 3 1 Combat Bots Only 3 | . 3 1 Max Kills in Single Turn 1 | . 1 1 Gunslinging . | . . . Exploded 1 | . 1 . Melee . | . . . Uniques/NPCs Destroyed . | . . . Combat | -11 -10 -10 -------- Run | Scr Mat Min Damage Taken 1515 | . 835 680 Core 272 | . 133 139 Absorbed by Shields . | . . . Core Remaining (%) 100 | 100 . . Volleys Fired 94 | . 82 12 Largest 2 | . 2 2 Hottest 130 | . 130 130 Shots Fired 151 | . 129 22 Gun 151 | . 129 22 Cannon . | . . . Launcher . | . . . Special . | . . . Kinetic 66 | . 52 14 Thermal 76 | . 68 8 Explosive . | . . . Electromagnetic 9 | . 9 . Robot Hit Streak 13 | . 13 6 Robot Miss Streak 4 | . 4 4 Penetration Max . | . . . Secondary Targets 3 | . 2 1 Max Gunslinging Chain 1 | . 1 1 Shots Hit Robots 110 | . 92 18 Core Hits 44 | . 31 13 Critical Hits 1 | . 1 . Critical Kills 1 | . 1 . Critical Parts Destroyed . | . . . Melee Attacks 11 | . 10 1 Impact 11 | . 10 1 Slashing . | . . . Piercing . | . . . Sneak Attacks . | . . . Combat Hostiles . | . . . Follow-up Attacks . | . . . Damage Inflicted 1402 | . 1192 210 Guns 1244 | . 1049 195 Cannons . | . . . Explosions . | . . . Melee 158 | . 143 15 Ramming . | . . . Kinetic 412 | . 295 117 Thermal 724 | . 646 78 Explosive . | . . . Electromagnetic 108 | . 108 . Impact 158 | . 143 15 Slashing . | . . . Piercing . | . . . Highest Corruption 3 | . 3 3 Average Corruption 2 | . 2 3 Corruption Purged . | . . . Effects 22 | . 15 7 Message Errors 9 | . 6 3 Matter Fused 5 | . 4 1 Heat Flow Errors 3 | . 1 2 Energy Discharges 2 | . 2 . Data Loss (minor) 2 | . 1 1 Targeting Errors 1 | . 1 . Overload Shots . | . . . Overflow Damage 13 | . 13 . Projectiles . | . . . Explosions . | . . . Melee 13 | . 13 . Knockbacks . | . . . Impact . | . . . Kinetic . | . . . Secondary . | . . . Self-Inflicted Damage . | . . . Shots . | . . . Rammed . | . . . Targets Rammed . | . . . Kicked . | . . . Crushed . | . . . Highest Temperature 411 | . 411 249 Average Temperature 122 | . 125 102 Received Heat Transfer 459 | . 459 . Effects 3 | . 2 1 Shutdowns 1 | . 1 . Energy Bleed 1 | . 1 . Interference 1 | . . 1 Siege Activations . | . . . Robots Corrupted . | . . . Combat Hostiles . | . . . Parts Fried 2 | . 2 . Impact Corruptions 2 | . 2 . Robots Melted . | . . . Combat Hostiles . | . . . Parts Melted 1 | . 1 . Heat Transferred 1580 | . 1480 100 Parts Sabotaged . | . . . Parts Stolen . | . . . Parts Stripped . | . . . Power Chain Reactions . | . . . Missiles Intercepted . | . . . Alert | -11 -10 -10 ------- Run | Scr Mat Min Peak Influence 144 | . 144 48 Initial 18 | . . 18 Average 59 | . 69 20 Maximum Alert Level . | . . . Low Security (%) 100 | 100 100 100 Level 1 . | . . . Level 2 . | . . . Level 3 . | . . . Level 4 . | . . . Level 5 . | . . . High Security . | . . . Max Security . | . . . Squads Dispatched 5 | . 5 . Investigation 3 | . 3 . Extermination . | . . . Reinforcement 2 | . 2 . Assault . | . . . Garrison . | . . . Intercept . | . . . Construction Impeded . | . . . Haulers Reinforced . | . . . Stealth | -11 -10 -10 --------- Run | Scr Mat Min Distress Signals . | . . . Communications Jammed . | . . . Distress Signals . | . . . Times Spotted 36 | . 28 8 Peak Tracking Total 6 | . 5 6 Tactical Retreats 7 | . 7 . Traps | -11 -10 -10 ------- Run | Scr Mat Min Traps Triggered 4 | . 4 . Indirectly . | . . . Trap Hack Attempts . | . . . Triggered . | . . . Disarmed . | . . . Reprogrammed . | . . . Reused . | . . . Traps Extracted . | . . . Installed . | . . . Triggered 1 | . 1 . Machines | -11 -10 -10 ---------- Run | Scr Mat Min Machines Disabled 2 | . 2 . Max in Single Turn 1 | . 1 . Machines Sabotaged . | . . . Garrisons Compromised . | . . . Overloaded Fab Kills . | . . . Fab Network Shutdowns . | . . . Hacking | -11 -10 -10 --------- Run | Scr Mat Min Machines Accessed 9 | . 9 . Terminals 6 | . 6 . Fabricators . | . . . Repair Stations 1 | . 1 . Recycling Units 2 | . 2 . Scanalyzers . | . . . Garrison Access . | . . . Total Hacks 26 | . 26 . Successful 18 | . 18 . Failed 8 | . 8 . Catastrophic . | . . . Database Lockouts . | . . . Manual . | . . . Terminals 14 | . 14 . Fabricators . | . . . Repair Stations 9 | . 9 . Recycling Units 3 | . 3 . Scanalyzers . | . . . Garrison Access . | . . . Terminal Hacks 8 | . 8 . Branch Access Points 1 | . 1 . Alert Level 3 | . 3 . Locate Traps 2 | . 2 . Transport Status 1 | . 1 . Registered Components 1 | . 1 . Fabricator Hacks . | . . . Repair Station Hacks 8 | . 8 . Scan Component 4 | . 4 . Repair 4 | . 4 . Recycling Unit Hacks 2 | . 2 . Report Inventory 2 | . 2 . Scanalyzer . | . . . Garrison Access Hacks . | . . . Unauthorized Hacks . | . . . Terminals . | . . . Fabricators . | . . . Repair Stations . | . . . Recycling Units . | . . . Scanalyzers . | . . . Garrison Access . | . . . Data Cores Recovered . | . . . Used . | . . . Hacking Detections 7 | . 7 . Full Trace Events 2 | . 2 . Feedback Events . | . . . Feedback Blocked . | . . . Robot Schematics Acquired . | . . . Robots Built . | . . . Matter . | . . . Time . | . . . Total Robot Build Rating . | . . . Part Schematics Acquired . | . . . Parts Built . | . . . Matter . | . . . Time . | . . . Total Part Build Rating . | . . . Parts Repaired 4 | . 4 . Time 110 | . 110 . Parts Recycled . | . . . Recycled Matter . | . . . Retrieved Matter . | . . . Retrieved Components . | . . . Parts Scanalyzed . | . . . Part Schematics Acquired . | . . . Parts Damaged . | . . . Bothacking | -11 -10 -10 ------------ Run | Scr Mat Min Used RIF Installer . | . . . Robots Hacked . | . . . Non-combat . | . . . Combat . | . . . Robot Hacks Applied . | . . . Relay Couplers Released . | . . . Robots Rewired . | . . . Allies Hacked . | . . . Hacks Repelled . | . . . Allies | -11 -10 -10 -------- Run | Scr Mat Min Total Allies . | . . . Largest Group . | . . . Highest-Rated Group . | . . . Highest-Rated Ally . | . . . Total Orders . | . . . Ally Attacks . | . . . Total Damage . | . . . Kills . | . . . Allies Corrupted . | . . . Allies Melted . | . . . Intel | -11 -10 -10 ------- Run | Scr Mat Min Robot Analysis Total . | . . . Derelict Logs Recovered 1 | . . 1 Drone Launches . | . . . Drone Recoveries . | . . . Exploration | -11 -10 -10 ------------- Run | Scr Mat Min Turns Passed 2496 | 66 2001 429 Spaces Moved 1235 | 48 961 226 Core 9 | 9 . . Treads 1022 | . 796 226 Legs 204 | 39 165 . Wheels . | . . . Hover . | . . . Flight . | . . . Fastest Speed 50 | 50 120 160 Average Speed 153 | 111 154 160 Slowest Speed 180 | 120 180 160 Overloaded Moves . | . . . Propulsion Burnouts . | . . . Robots Hopped . | . . . Cave-ins Triggered . | . . . Exploration Rate (%) 44 | 3 99 32 Regions Visited 2 Branch Regions 1 Pre-discovered Areas 2 | . . 2 Known Exits Taken 1 | . 1 . Unknown Exits Taken 1 | 1 . . Scrap Searched . | . . . Spaces Dug . | . . . Terrain Destroyed . | . . . Melee . | . . . Projectile . | . . . AOE . | . . . Terrain Rammed . | . . . Walls Destroyed . | . . . Machines Disabled . | . . . Actions | -11 -10 -10 --------- Run | Scr Mat Min Total 1676 | 58 1347 271 Wait 242 | . 215 27 Move 1233 | 47 960 226 Hop . | . . . Pick Up 28 | 5 23 . Fast Attach 10 | 4 6 . Attach 9 | 2 4 3 Detach 1 | . 1 . Swap 25 | . 23 2 Drop 23 | . 23 . Fire 94 | . 82 12 Melee 11 | . 10 1 Ram . | . . . Kick . | . . . Crush . | . . . Escape Stasis . | . . . Rewire . | . . . Trap . | . . . Miscellaneous . | . . . Route ------- -11/Scrapyard -10/Materials (discovered 4 exits: [*Mat x3] / *Min) -10/Mines History --------- Turn | Location | Event 23 | -11/Scrapyard | Discovered new exit (range 16) 67 | -11/Scrapyard | Entered Materials 149 | -10/Materials | Discovered new exit (range 13) 302 | -10/Materials | Build established: Mutant 689 | -10/Materials | Discovered new exit (range 5) 757 | -10/Materials | Identified exit to Mines 945 | -10/Materials | Repaired Particle Gun 973 | -10/Materials | Repaired Heat Sink 1000 | -10/Materials | Repaired Hammer 1027 | -10/Materials | Repaired Ion Engine 1300 | -10/Materials | Core integrity fell below 50% 1460 | -10/Materials | Discovered new exit (range 13) 1668 | -10/Materials | Discovered new exit (range 16) 2068 | -10/Materials | Entered Mines 2074 | -10/Mines | Met a Derelict bent on vengeance 2108 | -10/Mines | Learned location of Zion (-6) 2267 | -10/Mines | Assembled infested the area 2272 | -10/Mines | Assisted by a Guerilla fighting off Assembled 2321 | -10/Mines | Learned location of Storage (-9) 2495 | -10/Mines | Core integrity fell below 20% 2497 | -10/Mines | Destroyed by as-19258 with Assembled Blade Last Messages --------------- World map updated: -9/Storage. 02323_ X8-2IV(g): "We scattered so the Unaware couldn't effectively use their advantage in numbers, and I suggest you do the same." 02323_ X8-2IV(g) slips back into the shadows. 02360_ System corrupted: Heat flow error (+163). 02419_ as-79737 destroyed. 02422_ Acquired 17 matter. 02449_ as-12600 destroyed. 02452_ Acquired 20 matter. 02465_ Acquired 13 matter. 02475_ Acquired 32 matter. 02487_ as-82500 destroyed. 02487_ Switching to secondary target: as-60719. 02487_ Imp. Treads destroyed. 02488_ X50Q>51 BWMSFCZMOS:JNNU1YJWHRIEOY>=FALI 02490_ Heat Sink destroyed. 02490_ Spread Laser severed. 02491_ Imp. Treads destroyed. 02492_ Spread Laser destroyed. 02492_ Ion Engine destroyed. Map ----- +----------------------------------------------------+ | ?????????????????????????????????????????????????? | | ?????????????????????????????????????????????????? | | ?????????????????????????????????????????????????? | | ?????????????????????????????????????????????????? | | ?????????????????????????????????????????????????? | | ?????????????????????????????????????????????????? | | ?????????????????????????????????????????????????? | | ?????????????????????????????????????????????????? | | ?????????????????????????????????????????????????? | | ?????????????????????????????????????????????????? | | ?????????????????????????????????????????????????? | | ?????????????????????????????????????????????????? | | ?????????????????????????????????????????????????? | | ?????????????????????????????????????????????????? | | ??????????????????????????###????????????????????? | | ?????????????????????????## ##???????????????????? | | ????????????????????????## ##??????????????????? | | ?????????###########???## ##?????????????????? | | ?????????# ##### #?????????????????? | | ?????????# #?????????????????? | | ?????????# ##### =|####??????????????? | | ?????????# #???## = =!%""#??????????????? | | ?????????# #????### %=%%!=#???????????????? | | ?????????# #??????## a ##%*!% % #?????????? | | ?????????# #??????## a##?? *=! "#?????????? | | ?????????# #??????# a@#????? |!= #"#?????????? | | ?????????# #??????# aa#?????? !*#???????????? | | ?????????# #?????## ##???????? =#??????????? | | ?????????# #????## ##???????????????????????? | | ?????????# #????# #????????????????????????? | | ?????????# #????# #????????????????????????? | | ?????????# #????# ##????????????????????????? | | ?????????# #????## #?????????????????????????? | | ?????????# #?????### #######???????????????????? | | ?????????# #???????# #???????????????????? | | ?????????# #??####?# ##### ####????????????????? | | ?????????# #?## #?# #???# #????????????????? | | ?????????# ### #?# #???#### #????????????????? | | ?????????# #?# #??????# #????????????????? | | ?????????# ### #??????# #????????????????? | | ?????????# ## #??????# #????????????????? | | ?????????# # ###????# #????????????????? | | ?????????# % #????# #????????????????? | | ?????????# ##????# #????????????????? | | ?????????# ######## #????????????????? | | ?????????# ### #????????????????? | | ?????????## ##?# ##### #????????????????? | | ??????????######## ##??# #???# #????????????????? | | ?????????????????# ##???# #???# #????????????????? | | ?????????????????# #????# #???# ##???????####????? | +----------------------------------------------------+ Best States ------------- Heat Dissipation 35 Energy Generation 10 Energy Capacity 250 Matter Stores 300 Matter Capacity 300 Sight Range 16 Terrain Scan Density 10 Weapon Shielding 33 Evasion (%) 40 Recoil Reduction 2 Item Schematics ----------------- None Robot Schematics ------------------ None Fabricated ------------ Nothing Alien Tech Used ----------------- None Achievements -------------- None Challenges ------------ None Game ------ Seed ReactiveSmallBiocell Manual? 0 Play Time 00:25:48 Cumulative 34.2 hours Start 2020.09.29 @ 23:10:18 End 2020.09.29 @ 23:37:06 Sessions 1 Manual Loads 0 Difficulty Rogue Special Mode None Game No. 31 Rogue 31 Adventurer 0 Explorer 0 Win Type - Total 0 Types 0/0/0/0/0/0/0/0/0 Lore% 21 Gallery% 19 Achievement% 17 Wizard Run 0 Options --------- ASCII 0 Keyboard 0 Movement Numpad Keybinds 0 Fullscreen 1 Font 24/Terminus Map View 76x50 Tactical HUD 1 Map Filters NONE Filters NONE Steam 1 RUN: c4d99eb8-4e66-4c99-82ff-6ee874e495eb